Cogmind - Beta 9.6 @@@ ROGUE MODE // 2020.07.09 @ 21:57:16 Player: mr_sack Result: Destroyed by S-10 Pest with Light Assault Rifle Performance ------------- Evolutions (0) 0 Regions Visited (1) 200 Robots Destroyed (20) 100 Value Destroyed (318) 318 Prototype IDs (0) 0 Alien Tech Used (0) 0 Bonus (0) 0 TOTAL SCORE: 618 Bonus ------- None Cogmind --------- Core Integrity 0/250 Matter 285/300 Energy 125/125 System Corruption 0% Temperature Cool (0) Movement Walking (150) Ox1 Location -10/Materials Parts ------- > --- POWER (1) -------- Light Ion Engine > --- PROPULSION (2) --- Aluminum Leg > --- UTILITY (2) ------ Medium Storage Unit Sensor Array > --- WEAPON (2) ------- Mace Mace > --- INVENTORY (8) ---- Medium Matter Pod (100) Sensor Array Datajack Mace Peak State ------------ > --- POWER ------------ Ion Engine > --- PROPULSION ------- Aluminum Leg Aluminum Leg > --- UTILITY ---------- Small Storage Unit Improved Terrain Scanner > --- WEAPON ----------- Mace Mace > --- INVENTORY -------- Light Ion Engine Medium Matter Pod Particle Gun Heavy Assault Rifle Heavy Assault Rifle Mace [Rating: 11] Favorites ----------- Power Ion Engine Engine Ion Engine Propulsion Aluminum Leg Leg Aluminum Leg Utility Small Storage Unit Device Sensor Array Storage Small Storage Unit Processor Seismic Analyzer Weapon Mace Ballistic Gun Assault Rifle Impact Weapon Mace Build | -11 -10 ------- Run | Scr Mat Slots Evolved . | . . Power . | . . Propulsion . | . . Utility . | . . Weapon . | . . Parts Attached 19 | 8 11 Power 2 | 1 1 Engine 2 | 1 1 Core . | . . Reactor . | . . Propulsion 6 | 2 4 Treads . | . . Leg 6 | 2 4 Wheel . | . . Hover . | . . Flight . | . . Utility 6 | 3 3 Device 3 | 1 2 Storage 2 | 1 1 Processor 1 | 1 . Hackware . | . . Protection . | . . Artifact . | . . Weapon 5 | 2 3 Energy Gun . | . . Energy Cannon . | . . Ballistic Gun 2 | 2 . Ballistic Cannon . | . . Launcher . | . . Special Weapon . | . . Impact Weapon 3 | . 3 Slashing Weapon . | . . Piercing Weapon . | . . Special Melee Weapon . | . . Unidentified Prototypes . | . . Parts Lost 6 | . 6 Power 1 | . 1 Propulsion 4 | . 4 Utility . | . . Weapon 1 | . 1 Highest Loss Streak 5 | . 5 Average Slot Usage (%) 94 | . 94 Engine 13 | . 13 Leg 23 | . 23 Device 14 | . 14 Storage 14 | . 14 Ballistic Gun 1 | . 1 Impact Weapon 26 | . 26 Naked Turns . | . . Heaviest Build 18 | 14 18 Greatest Support 20 | 20 20 Greatest Overweight (x) 5 | 4 5 Average Overweight (x) . | . . Largest Inventory Capacity 8 | 6 8 Average Capacity 6 | 5 6 Most Carried 7 | 3 7 Average Carried 4 | 1 5 Final Capacity 8 | 6 8 Final Carried 4 | 3 4 Class Distribution -------------------- 100% | Mutant Dominant Class ---------------- Mutant | -10/Materials Resources | -11 -10 ----------- Run | Scr Mat Matter Collected 508 | 378 130 Remotely . | . . Salvage Created 717 | 180 537 Parts 29 | 18 11 Haulers Intercepted 2 | . 2 Recyclers Shooed . | . . Parts Field Recycled . | . . Retrieved Matter . | . . Parts Self-Destructed . | . . Prevented . | . . Kills | -11 -10 ------- Run | Scr Mat Combat Hostiles Destroyed 6 | . 6 Melee 4 | . 4 Classes Destroyed 6 | 3 3 Worker 5 | 2 3 Tunneler 4 | 4 . Hauler 2 | . 2 Recycler 2 | 1 1 Watcher 1 | . 1 Grunt 6 | . 6 Best Kill Streak 4 | 4 3 Combat Bots Only 3 | . 3 Max Kills in Single Turn 2 | 2 1 Gunslinging . | . . Exploded . | . . Melee 1 | . 1 Uniques/NPCs Destroyed . | . . Combat | -11 -10 -------- Run | Scr Mat Damage Taken 813 | . 813 Core 255 | . 255 Absorbed by Shields . | . . Core Remaining (%) 100 | 100 . Volleys Fired 11 | 11 . Largest 2 | 2 . Hottest 40 | 40 . Shots Fired 22 | 22 . Gun 22 | 22 . Cannon . | . . Launcher . | . . Special . | . . Kinetic 22 | 22 . Thermal . | . . Explosive . | . . Electromagnetic . | . . Robot Hit Streak 6 | 6 . Robot Miss Streak 2 | 2 . Penetration Max . | . . Secondary Targets . | . . Shots Hit Robots 55 | 13 42 Core Hits 15 | 8 7 Critical Hits . | . . Critical Kills . | . . Critical Parts Destroyed . | . . Melee Attacks 72 | . 72 Impact 72 | . 72 Slashing . | . . Piercing . | . . Sneak Attacks 6 | . 6 Combat Hostiles . | . . Follow-up Attacks 9 | . 9 Damage Inflicted 1335 | 209 1126 Guns 209 | 209 . Cannons . | . . Explosions . | . . Melee 1126 | . 1126 Ramming . | . . Kinetic 209 | 209 . Thermal . | . . Explosive . | . . Electromagnetic . | . . Impact 1126 | . 1126 Slashing . | . . Piercing . | . . Highest Corruption . | . . Average Corruption . | . . Corruption Purged . | . . Overload Shots . | . . Overflow Damage 161 | . 161 Projectiles . | . . Explosions . | . . Melee 161 | . 161 Knockbacks 10 | . 10 Impact 10 | . 10 Kinetic . | . . Secondary . | . . Self-Inflicted Damage . | . . Shots . | . . Rammed . | . . Targets Rammed . | . . Kicked . | . . Crushed . | . . Highest Temperature . | . . Average Temperature . | . . Received Heat Transfer 393 | . 393 Siege Activations . | . . Robots Corrupted . | . . Combat Hostiles . | . . Parts Fried 9 | . 9 Impact Corruptions 11 | . 11 Robots Melted . | . . Combat Hostiles . | . . Parts Melted . | . . Heat Transferred . | . . Parts Sabotaged . | . . Parts Stolen . | . . Parts Stripped . | . . Power Chain Reactions . | . . Missiles Intercepted . | . . Alert | -11 -10 ------- Run | Scr Mat Peak Influence 158 | 35 158 Average Influence 46 | 14 58 Maximum Alert Level . | . . Low Security (%) 100 | 100 100 Level 1 . | . . Level 2 . | . . Level 3 . | . . Level 4 . | . . Level 5 . | . . High Security . | . . Max Security . | . . Squads Dispatched . | . . Investigation . | . . Extermination . | . . Reinforcement . | . . Assault . | . . Garrison . | . . Intercept . | . . Construction Impeded . | . . Haulers Reinforced . | . . Stealth | -11 -10 --------- Run | Scr Mat Distress Signals 1 | . 1 Communications Jammed . | . . Distress Signals . | . . Times Spotted 16 | . 16 Peak Tracking Total 5 | . 5 Tactical Retreats 1 | . 1 Traps | -11 -10 ------- Run | Scr Mat Traps Triggered . | . . Indirectly . | . . Trap Hack Attempts . | . . Triggered . | . . Disarmed . | . . Reprogrammed . | . . Reused . | . . Traps Extracted . | . . Installed . | . . Triggered . | . . Machines | -11 -10 ---------- Run | Scr Mat Machines Disabled 1 | . 1 Max in Single Turn 1 | . 1 Machines Sabotaged . | . . Garrisons Compromised . | . . Overloaded Fab Kills . | . . Fab Network Shutdowns . | . . Hacking | -11 -10 --------- Run | Scr Mat Machines Accessed 2 | . 2 Terminals 2 | . 2 Fabricators . | . . Repair Stations . | . . Recycling Units . | . . Scanalyzers . | . . Garrison Access . | . . Total Hacks 8 | . 8 Successful 4 | . 4 Failed 4 | . 4 Catastrophic . | . . Database Lockouts . | . . Manual 4 | . 4 Terminals 8 | . 8 Fabricators . | . . Repair Stations . | . . Recycling Units . | . . Scanalyzers . | . . Garrison Access . | . . Terminal Hacks 4 | . 4 Terminal Index 1 | . 1 Scanalyzer Index 1 | . 1 Unreport Threat 1 | . 1 Locate Traps 1 | . 1 Fabricator Hacks . | . . Repair Station Hacks . | . . Recycling Unit Hacks . | . . Scanalyzer . | . . Garrison Access Hacks . | . . Unauthorized Hacks . | . . Terminals . | . . Fabricators . | . . Repair Stations . | . . Recycling Units . | . . Scanalyzers . | . . Garrison Access . | . . Data Cores Recovered . | . . Used . | . . Hacking Detections 2 | . 2 Full Trace Events . | . . Feedback Events . | . . Feedback Blocked . | . . Robot Schematics Acquired . | . . Robots Built . | . . Matter . | . . Time . | . . Total Robot Build Rating . | . . Part Schematics Acquired . | . . Parts Built . | . . Matter . | . . Time . | . . Total Part Build Rating . | . . Parts Repaired . | . . Time . | . . Parts Recycled . | . . Recycled Matter . | . . Retrieved Matter . | . . Retrieved Components . | . . Parts Scanalyzed . | . . Part Schematics Acquired . | . . Parts Damaged . | . . Bothacking | -11 -10 ------------ Run | Scr Mat Used RIF Installer . | . . Robots Hacked . | . . Non-combat . | . . Combat . | . . Robot Hacks Applied . | . . Relay Couplers Released . | . . Robots Rewired . | . . Allies Hacked . | . . Hacks Repelled . | . . Allies | -11 -10 -------- Run | Scr Mat Total Allies . | . . Largest Group . | . . Highest-Rated Group . | . . Highest-Rated Ally . | . . Total Orders . | . . Ally Attacks . | . . Total Damage . | . . Kills . | . . Allies Corrupted . | . . Allies Melted . | . . Intel | -11 -10 ------- Run | Scr Mat Robot Analysis Total . | . . Derelict Logs Recovered . | . . Drone Launches . | . . Drone Recoveries . | . . Exploration | -11 -10 ------------- Run | Scr Mat Turns Passed 680 | 188 492 Spaces Moved 331 | 103 228 Core 31 | 21 10 Treads . | . . Legs 300 | 82 218 Wheels . | . . Hover . | . . Flight . | . . Fastest Speed 50 | 50 120 Average Speed 131 | 135 129 Slowest Speed 300 | 250 300 Overloaded Moves . | . . Propulsion Burnouts . | . . Robots Hopped . | . . Cave-ins Triggered . | . . Exploration Rate (%) 14 | 5 23 Regions Visited 1 Branch Regions . Pre-discovered Areas . | . . Known Exits Taken . | . . Unknown Exits Taken 1 | 1 . Scrap Searched . | . . Spaces Dug . | . . Terrain Destroyed . | . . Melee . | . . Projectile . | . . AOE . | . . Actions | -11 -10 --------- Run | Scr Mat Total 464 | 126 338 Wait 20 | . 20 Move 330 | 102 228 Hop . | . . Pick Up 12 | 4 8 Fast Attach 12 | 7 5 Attach 4 | 1 3 Detach 3 | 1 2 Swap 3 | . 3 Drop 10 | . 10 Fire 11 | 11 . Melee 59 | . 59 Ram . | . . Kick . | . . Crush . | . . Escape Stasis . | . . Rewire . | . . Trap . | . . Miscellaneous . | . . Route ------- -11/Scrapyard -10/Materials History --------- Turn | Location | Event 24 | -11/Scrapyard | Discovered new exit (range 16) 189 | -11/Scrapyard | Entered Materials 305 | -10/Materials | Build established: Mutant 564 | -10/Materials | Core integrity fell below 50% 582 | -10/Materials | Core integrity fell below 20% 622 | -10/Materials | Lost 5 parts (1p3n1w) 681 | -10/Materials | Destroyed by S-10 Pest with Light Assault Rifle Last Messages --------------- 00594_ Mace follow-up attack on G-47 Trooper. 00594_ G-47 Trooper knocked back. 00597_ Acquired 5 matter. 00599_ Destroyed Imp. Heat Sink. 00599_ G-47 Trooper system corrupted by crushing effect. 00600_ G-47 Trooper system terminally corrupted. 00618_ K-01 Serf collects debris. 00622_ Acquired 10 matter. 00626_ K-01 Serf collects debris. 00628_ Acquired Aluminum Leg. 00630_ K-01 Serf collects debris. 00633_ Sneak attack on K-01 Serf. 00633_ Destroyed Med. Matter Pod. 00633_ Destroyed Wheel. 00633_ K-01 Serf system corrupted by crushing effect. 00634_ K-01 Serf system terminally corrupted. 00634_ Lgt. Ion Engine fried. 00654_ Acquired Aluminum Leg. 00657_ Aluminum Leg destroyed. 00670_ K-01 Serf collects debris. Map ----- +----------------------------------------------------+ | ?????????????????????????????????????????????????? | | ?????????????????????????????????????????????????? | | ?????????????????????????????????????????????????? | | ?????????????????????????????????????????????????? | | ?????????????????????????????????????????????????? | | ?????????????????????????????????????????????????? | | ?????????????????????????????????????????????????? | | ?????????????????????????????????????????????????? | | ?????????????????????????????????????????????????? | | ?????????????????????????????????????????????????? | | ?????????????????????????????????????????????????? | | ?????????????????????????????????????????????????? | | ????????????????????????????????????????????"????? | | ???????????????????????????????????????????? ????? | | ????????????#??#???????????????????????????#+##### | | ???????????????# ????????????????????????# # | | ???????????????#^^^##########??????????????# # "" | | ???????????????# # #??????????????# # "" | | ???????????????# # #??????????##### + "" | | ???????????????# # #??????????#[[ # | | ???????????????# # #??????????#[[ # % | | ???????????? ? # # !!! #????????#?#!! ##### | | ???????????????# # !!! #??????????#!! #???? | | ???????????????# # ! #?#????????#]] #?### | | ???????????????# # %! #????#?????#]] #?# | | ???????#???? ??# # %!!@%%#??????????##### #?# | | ?? ????????????# #####s################### ### | | ?????#?######### !s%? % % [# | | ???????# # k[[ ? =%!+% | | ???????# # !! ]] # | | ???????# # ! ####################]# | | ???????# # #??????????????????#%# | | ???????# # " % #????#?????????????#]# | | ???????# # "T #??????????????????#]### | | ???????# [# "" ? #??#???????????????#]#?? | | ??????"# + #??????????????????#+#?? | | ???????# # % #??????#???????????????? | | ???????# ## #########?#????????????????????? | | ???????# ## #????#?????????????????????????? | | ???????########## ######?????????????????????????? | | ?????????????# [[#??#??#???????????????????? | | ?????????????# [[#?????#???????#???????????? | | ?????????????# T ! [[#??#??????????????????????? | | ?????????????# [[#?????????????????????????? | | ?????? ??????# [#????????#????????????????? | | ???????????#### ## #?????????????????????????? | | ?????????#????# ######?????#???????????????????? | | ????????????#?# #???#?#???#??#?????????????????? | | ?????????#????# #?????#????????????????????????? | | ????????????#?# #??????????????????????????????? | +----------------------------------------------------+ Best States ------------- Heat Dissipation 25 Energy Generation 10 Energy Capacity 250 Matter Stores 300 Matter Capacity 300 Sight Range 16 Robot Scan Range 10 Terrain Scan Range 16 Terrain Scan Density 60 Evasion (%) 40 Item Schematics ----------------- None Robot Schematics ------------------ None Fabricated ------------ Nothing Alien Tech Used ----------------- None Achievements -------------- None Challenges ------------ None Game ------ Seed FlightBoreInterrupter Manual? 0 Play Time 00:12:26 Cumulative 44.6 hours Start 2020.07.09 @ 21:42:42 End 2020.07.09 @ 21:57:16 Sessions 1 Manual Loads 0 Difficulty Rogue Special Mode None Game No. 35 Rogue 30 Adventurer 5 Explorer 0 Win Type - Total 0 Types 0/0/0/0/0/0/0 Lore% 30 Gallery% 33 Achievement% 24 Wizard Run 0 Options --------- ASCII 0 Keyboard 1 Movement Arrows Keybinds 0 Fullscreen 1 Font 24/Smallcaps Map View 113x50 Tactical HUD 1 Map Filters NONE Filters NONE Steam 1 RUN: 1fb37bd5-c758-4195-899e-65dfc958716a